bitfinex-derivatives/quotes_BTCF0:USTF0_20250212
["timestamp","ask_amount","ask_price","bid_price","bid_amount"]
[1739376055484,0.3618,95707.0,95706.0,0.2099824]
[1739376055890,0.3618,95707.0,95706.0,0.001]
[1739376056090,0.44156,95707.0,95706.0,0.001]
[1739376057403,0.44056,95707.0,95706.0,0.001]
[1739376057607,0.3678,95707.0,95700.0,0.1]
[1739376057794,0.3678,95707.0,95706.0,0.2089838]
[1739376058597,0.007,95707.0,95706.0,0.2089838]
[1739376058799,0.00835,95709.0,95708.0,0.2089794]
[1739376058994,0.00156766,95727.0,95724.0,0.2089445]
[1739376059195,0.00156766,95727.0,95724.0,0.5697445]
[1739376059503,0.00156766,95727.0,95724.0,0.6097445]
[1739376059701,0.00156766,95727.0,95724.0,0.5997445]
[1739376059899,0.3608,95744.0,95724.0,0.3908]
[1739376060095,0.3608,95759.0,95733.0,0.3608]
[1739376060293,0.3608,95759.0,95757.0,0.2088725]
[1739376060501,0.0175215,95758.0,95757.0,0.2088725]
[1739376060805,0.2095,95769.0,95768.0,0.2088485]
[1739376061399,0.52069378,95769.0,95748.0,0.00015665]
[1739376061605,0.48637299,95760.0,95759.0,0.2088681]
[1739376061789,0.3608,95760.0,95759.0,0.2088681]
[1739376062903,0.23469378,95769.0,95768.0,0.2088485]
[1739376063201,0.0925,95769.0,95768.0,0.2088485]
[1739376063395,0.021,95769.0,95768.0,0.2088485]
[1739376063797,0.014,95769.0,95768.0,0.2088485]
[1739376064503,8e-08,95773.0,95772.0,0.2088398]
[1739376065098,0.00015665,95778.0,95777.0,0.2088289]
[1739376065409,0.58205665,95778.0,95759.0,0.001]
[1739376065706,0.7216,95760.0,95759.0,0.001]
[1739376065899,1.10032,95760.0,95758.0,0.0995702]
[1739376066105,1.10032,95760.0,95759.0,0.00015665]
[1739376066106,1.0206,95760.0,95759.0,0.00015665]
[1739376066496,0.7206,95760.0,95759.0,0.00015665]
[1739376066708,0.7196,95760.0,95759.0,0.00115665]
[1739376067405,0.7266,95760.0,95759.0,0.00115665]
[1739376067799,0.7196,95760.0,95759.0,0.00115665]
[1739376068193,0.7266,95760.0,95759.0,0.00215665]
[1739376068612,0.7276,95760.0,95759.0,0.00215665]
[1739376068795,0.008,95760.0,95759.0,0.00215665]
[1739376070103,1e-07,95760.0,95759.0,0.00215665]
[1739376071405,1e-07,95768.0,95767.0,0.2088507]
[1739376071708,1e-07,95768.0,95767.0,0.5696507]
[1739376072596,1e-07,95768.0,95767.0,0.5706507]
[1739376073408,1e-07,95768.0,95767.0,0.2098507]
[1739376073800,0.0060001,95768.0,95767.0,0.2108507]
[1739376074208,0.006,95768.0,95767.0,0.2108507]
[1739376074907,0.306,95768.0,95767.0,0.1014507]
[1739376075706,0.2088557,95765.0,95759.0,0.20902395]
[1739376075910,0.3608,95760.0,95759.0,0.2088673]
[1739376076402,0.6608,95760.0,95759.0,0.2088673]
[1739376076605,0.3608,95760.0,95759.0,0.2088673]
[1739376077007,0.3608,95760.0,95759.0,0.2098673]
[1739376077710,0.3678,95760.0,95759.0,0.2098673]
[1739376078711,0.3678,95760.0,95759.0,0.2108673]
[1739376079108,0.007,95760.0,95759.0,0.2108673]
[1739376079310,0.007,95760.0,95759.0,0.2098673]
[1739376079509,0.017,95760.0,95759.0,0.2108673]
[1739376079808,0.3608,95779.0,95775.0,0.2088333]
[1739376080009,0.3608,95779.0,95777.0,0.2088289]
[1739376080201,0.01083832,95778.0,95777.0,0.2088289]
[1739376080406,0.00015665,95778.0,95777.0,0.2088289]
[1739376081613,0.00715665,95778.0,95777.0,0.2098289]
[1739376082009,0.01015665,95778.0,95777.0,0.2098289]
[1739376082214,0.01015665,95778.0,95777.0,0.2108289]
[1739376083813,0.00315665,95778.0,95777.0,0.2108289]
[1739376084012,0.00915665,95778.0,95777.0,0.2108289]
[1739376084402,0.00315665,95778.0,95777.0,0.2098289]
[1739376084609,0.01015665,95778.0,95777.0,0.2108289]
[1739376085011,0.00315665,95778.0,95777.0,0.2098289]
[1739376085317,0.01015665,95778.0,95777.0,0.2108289]
[1739376085521,0.01015665,95778.0,95777.0,0.17964472]
[1739376085825,0.21898335,95778.0,95777.0,0.17964472]
[1739376086124,0.21898335,95778.0,95777.0,0.002]
[1739376086314,0.21598335,95778.0,95777.0,0.001]
[1739376086516,0.21998335,95778.0,95777.0,0.002]
[1739376086823,0.21998335,95778.0,95777.0,0.2108289]
[1739376087016,0.01115665,95778.0,95777.0,0.2108289]
[1739376087217,0.00715665,95778.0,95777.0,0.2098289]
[1739376087416,0.01215665,95778.0,95777.0,0.2108289]
[1739376089930,0.2088362,95774.0,95768.0,0.2088476]
[1739376090125,0.3608,95769.0,95768.0,0.2088476]
[1739376090319,0.2088584,95764.0,95743.0,0.0522253]
[1739376090524,0.3608,95749.0,95748.0,0.2088921]
[1739376091627,0.3598,95749.0,95748.0,0.2088921]
[1739376092119,0.3638,95749.0,95748.0,0.2088921]
[1739376092521,0.3628,95749.0,95748.0,0.2088921]
[1739376092723,0.3628,95749.0,95748.0,0.2098921]
[1739376093017,0.37363855,95749.0,95748.0,0.2098921]
[1739376093431,0.37363855,95749.0,95748.0,0.2108921]
[1739376099922,0.2088994,95745.0,95740.0,0.2089091]
[1739376100134,0.3608,95741.0,95740.0,0.2089091]
[1739376101234,0.3608,95741.0,95740.0,0.2099091]
[1739376102127,0.3678,95741.0,95740.0,0.2109091]
[1739376102730,0.3748,95741.0,95740.0,0.2109091]
[1739376103131,0.3748,95741.0,95740.0,0.002]
[1739376103332,0.4544,95741.0,95740.0,0.002]
[1739376104139,0.6633074,95741.0,95740.0,0.002]
[1739376104332,0.5837074,95741.0,95740.0,0.002]
[1739376104737,0.3748,95741.0,95740.0,0.2109096]
[1739376108845,0.00056001,95749.0,95748.0,0.2088922]
[1739376109037,0.12574246,95760.0,95757.0,0.2088725]
[1739376109240,0.3608,95763.0,95757.0,0.2088725]
[1739376110331,0.3608,95763.0,95762.0,0.2088616]
[1739376110535,0.48866952,95780.0,95766.0,0.2088529]
[1739376110947,0.48866952,95780.0,95767.0,0.0675]
[1739376111645,0.19829174,95768.0,95767.0,0.0675]
[1739376111948,0.01116197,95768.0,95767.0,0.0675]
[1739376112244,0.00015665,95777.0,95776.0,0.2088311]
[1739376112949,0.00015665,95777.0,95776.0,0.2088113]
[1739376113247,0.01085882,95777.0,95776.0,0.2088113]
[1739376113447,0.00015665,95777.0,95776.0,0.2088113]
[1739376113943,0.00015665,95777.0,95776.0,0.2098113]
[1739376115047,0.00215665,95777.0,95776.0,0.2108113]
[1739376115946,0.00215665,95777.0,95776.0,0.2098113]
[1739376116144,0.00315665,95777.0,95776.0,0.2108113]
[1739376116347,0.00315665,95777.0,95776.0,0.5716113]
[1739376117444,0.00315665,95777.0,95776.0,0.2108113]
[1739376117945,0.00115665,95777.0,95776.0,0.2098113]
[1739376118151,0.00315665,95777.0,95776.0,0.2108113]
[1739376119036,0.00315665,95777.0,95776.0,0.1772923]
[1739376119237,0.00115665,95777.0,95769.0,0.2088238]
[1739376119445,0.2088208,95772.0,95766.0,0.3608]
[1739376119645,0.1335,95771.0,95766.0,0.3608]
[1739376119945,0.2088241,95770.0,95766.0,0.3608]
[1739376120151,0.1335,95771.0,95766.0,0.3608]
[1739376120347,0.00315665,95777.0,95775.0,0.2088126]
[1739376120651,0.00315665,95777.0,95776.0,0.001]
[1739376121047,0.00315665,95777.0,95776.0,0.002]
[1739376121343,0.00315665,95777.0,95776.0,0.3628]
[1739376121751,0.00315665,95777.0,95776.0,0.3618]
[1739376122148,0.77296001,95784.0,95776.0,0.3618]
[1739376122348,0.7724,95784.0,95776.0,0.3628]
[1739376122548,0.18712977,95795.0,95794.0,0.2087714]
[1739376123146,0.18712977,95795.0,95794.0,0.3443714]
[1739376123757,0.09621461,95803.0,95796.0,0.2087671]
[1739376124053,0.01072945,95801.0,95796.0,0.2087671]
[1739376124650,0.01072945,95801.0,95800.0,0.2087583]
[1739376124849,0.01072945,95801.0,95794.0,0.1356]
[1739376124850,0.00015665,95804.0,95796.0,0.001]
[1739376125049,0.00015665,95804.0,95803.0,0.5695518]
[1739376126249,0.00015665,95804.0,95803.0,0.5705518]
[1739376126645,0.01108041,95804.0,95803.0,0.5705518]
[1739376126846,0.00015665,95804.0,95803.0,0.5705518]
[1739376129743,0.00061081,95821.0,95803.0,0.3618]
[1739376129950,0.00061081,95821.0,95820.0,0.2087148]
[1739376130654,9e-08,95821.0,95820.0,0.2087148]
[1739376130854,0.1393,95847.0,95834.0,0.2086843]
[1739376131063,0.1393,95847.0,95834.0,0.5694843]
[1739376131359,0.00015656,95844.0,95834.0,0.5694843]
[1739376131559,0.10733347,95835.0,95834.0,0.5694843]
[1739376132450,0.10833347,95835.0,95834.0,0.5704843]
[1739376133552,0.10833347,95835.0,95834.0,0.5714843]
[1739376135559,0.10833347,95835.0,95834.0,0.17859174]
[1739376135863,0.10833347,95835.0,95834.0,0.17439674]
[1739376136362,0.31701557,95835.0,95830.0,0.208693]
[1739376136561,0.3608,95833.0,95830.0,0.208693]
[1739376136860,0.3608,95833.0,95817.0,0.0530202]
[1739376136861,0.3608,95833.0,95817.0,0.0521802]
[1739376137051,0.3608,95833.0,95832.0,0.2086886]
[1739376138364,0.3608,95833.0,95832.0,0.2096886]
[1739376138765,0.3618,95833.0,95832.0,0.2106886]
[1739376140660,0.001,95833.0,95832.0,0.002]
[1739376140858,0.0814,95833.0,95832.0,0.2106886]
[1739376141065,0.002,95833.0,95832.0,0.2106886]
[1739376143266,0.001,95833.0,95832.0,0.2106886]
[1739376144258,0.001,95833.0,95832.0,0.5714886]
[1739376144569,0.001,95833.0,95832.0,0.2106886]
[1739376145872,0.0686,95833.0,95832.0,0.2106886]
[1739376146168,0.0686,95833.0,95832.0,0.12727139]
[1739376146663,0.001,95833.0,95832.0,0.12727139]
[1739376150368,0.001,95833.0,95832.0,0.48807139]
[1739376151669,0.001,95833.0,95832.0,0.12727139]
[1739376157670,0.70361851,95846.0,95841.0,0.208669]
[1739376157871,0.70361851,95846.0,95832.0,0.002]
[1739376157872,0.70361851,95846.0,95842.0,0.2086666]
[1739376158777,0.01113345,95844.0,95828.0,0.138196]
[1739376159075,0.3608,95834.0,95810.0,0.3608]
[1739376159278,0.3608,95812.0,95811.0,0.16071883]
[1739376159476,0.3608,95812.0,95811.0,0.13912872]
[1739376159668,0.3608,95812.0,95807.0,0.24658228]
[1739376159873,0.3598,95812.0,95807.0,0.45532488]
[1739376160483,0.3598,95812.0,95808.0,0.20874]
[1739376160775,0.3598,95812.0,95811.0,0.001]
[1739376160967,0.43912,95812.0,95811.0,0.001]
[1739376161171,0.44012,95812.0,95811.0,0.001]
[1739376161371,0.43912,95812.0,95807.0,0.24758228]
[1739376161575,0.3598,95812.0,95808.0,0.2087404]
[1739376161765,0.3588,95812.0,95808.0,0.2087404]
[1739376161972,0.3598,95812.0,95808.0,0.2087404]
[1739376162172,0.3598,95812.0,95807.0,0.24858228]
[1739376162371,0.3598,95812.0,95810.0,0.2087359]
[1739376162582,0.001,95812.0,95810.0,0.2087359]
[1739376162784,0.002,95812.0,95811.0,0.001]
[1739376163078,0.08132,95812.0,95811.0,0.001]
[1739376163487,0.44212,95812.0,95811.0,0.001]
[1739376163780,0.44412,95812.0,95811.0,0.002]
[1739376164373,0.44212,95812.0,95811.0,0.001]
[1739376164680,0.44212,95812.0,95811.0,0.002]
[1739376164681,0.08432,95812.0,95811.0,0.002]
[1739376164882,0.005,95812.0,95811.0,0.001]
[1739376165180,0.08432,95812.0,95811.0,0.001]
[1739376165379,0.07932,95812.0,95811.0,0.2097344]
[1739376165575,0.00015656,95821.0,95820.0,0.2087148]
[1739376165780,0.00015656,95821.0,95820.0,0.5695148]
[1739376167076,0.00215656,95821.0,95820.0,0.5705148]
[1739376168380,0.00215656,95821.0,95820.0,0.5715148]
[1739376169086,0.00015656,95821.0,95820.0,0.5705148]
[1739376169278,0.00015656,95821.0,95820.0,0.5715148]
[1739376171084,0.00015656,95821.0,95820.0,0.5705148]
[1739376171384,0.00015656,95821.0,95820.0,0.2107148]
[1739376172485,0.00015656,95821.0,95820.0,0.5715148]
[1739376173083,0.77172,95834.0,95833.0,0.2086865]
[1739376173380,0.77172,95834.0,95833.0,0.5694865]
[1739376174781,0.78264288,95834.0,95833.0,0.5704865]
[1739376176787,1.35212718,95834.0,95825.0,0.2087039]
[1739376176985,1.14344288,95834.0,95825.0,0.1339819]
[1739376177287,1.14344288,95834.0,95824.0,0.00015656]
[1739376177288,0.3608,95826.0,95824.0,0.00015656]
[1739376177488,0.1963,95825.0,95824.0,0.00015656]
[1739376178284,0.1953,95825.0,95824.0,0.00015656]
[1739376179177,0.1943,95825.0,95824.0,0.00115656]
[1739376179976,0.1953,95825.0,95824.0,0.00215656]
[1739376181084,0.01243922,95825.0,95824.0,0.00215656]
[1739376181984,0.001,95825.0,95824.0,0.00115656]
[1739376182186,0.78320289,95834.0,95824.0,0.13435656]
[1739376182493,0.78264288,95834.0,95833.0,0.2086865]
[1739376184087,0.78464288,95834.0,95833.0,0.2096865]
[1739376184997,0.78464288,95834.0,95833.0,0.2106865]
[1739376188299,0.77372,95834.0,95833.0,0.2106865]
[1739376191389,0.002,95834.0,95833.0,0.2106865]
[1739376197205,0.00015656,95843.0,95833.0,0.2106865]
[1739376197206,0.00015656,95843.0,95842.0,0.2086669]
[1739376197692,0.01375173,95843.0,95842.0,0.2086669]
[1739376199202,0.01375173,95843.0,95842.0,0.2096669]
[1739376202603,0.01375173,95843.0,95842.0,0.2106669]
[1739376204101,0.01375173,95843.0,95842.0,0.002]
[1739376204296,0.01375173,95843.0,95839.0,0.3608]
[1739376204297,0.22241643,95843.0,95837.0,0.2086761]
[1739376204803,0.3608,95838.0,95824.0,0.06765656]
[1739376205004,0.2087083,95823.0,95822.0,0.16871407]
[1739376205200,0.3608,95828.0,95809.0,0.3608]
[1739376205500,0.2077242,95816.0,95814.0,0.26509148]
[1739376205709,0.196,95815.0,95814.0,0.26509148]
[1739376206306,0.195,95815.0,95814.0,0.26609148]
[1739376206503,0.195,95815.0,95814.0,0.22583863]
[1739376206712,0.2087389,95809.0,95805.0,0.36725993]
[1739376206905,0.3598,95806.0,95805.0,0.36725993]
[1739376207107,0.3598,95806.0,95805.0,0.30901115]
[1739376207496,0.3588,95806.0,95805.0,0.30901115]
[1739376208107,0.5675453,95806.0,95805.0,0.15599923]
[1739376208303,0.3578,95806.0,95796.0,0.23428455]
[1739376208498,0.3608,95797.0,95796.0,0.23428455]
[1739376209110,0.3598,95797.0,95796.0,0.23428455]
[1739376209319,0.3588,95797.0,95796.0,0.23428455]
[1739376209905,0.3628,95797.0,95796.0,0.23628455]
[1739376210106,0.37663335,95797.0,95796.0,0.23628455]
[1739376210909,0.01783335,95797.0,95796.0,0.44505165]
[1739376211509,0.01783335,95797.0,95796.0,0.2107671]
[1739376211708,0.01783335,95797.0,95796.0,0.2737671]
[1739376212612,0.02083335,95797.0,95796.0,0.2737671]
[1739376212817,0.02083335,95797.0,95796.0,0.002]
[1739376213404,0.02183335,95797.0,95796.0,0.002]
[1739376214011,0.01783335,95797.0,95796.0,0.001]
[1739376214214,0.02283335,95797.0,95796.0,0.002]
[1739376214520,0.37963335,95797.0,95796.0,0.001]
[1739376214819,0.38263335,95797.0,95796.0,0.002]
[1739376215007,0.38263335,95797.0,95796.0,0.001]
[1739376215204,0.68263335,95797.0,95787.0,0.00015652]
[1739376215409,0.3608,95788.0,95787.0,0.00015652]
[1739376215810,0.4336,95788.0,95787.0,0.00015652]
[1739376216017,0.4326,95788.0,95787.0,0.00015652]
[1739376216214,0.5767,95788.0,95787.0,0.00015652]
[1739376216621,0.5767,95788.0,95787.0,0.00115652]
[1739376217213,0.5817,95788.0,95787.0,0.00115652]
[1739376217809,0.5106,95788.0,95787.0,0.00115652]
[1739376218516,0.5156,95788.0,95787.0,0.00215652]
[1739376219023,0.5156,95788.0,95787.0,1e-08]
[1739376219213,0.8156,95788.0,95762.0,0.067]
[1739376219419,0.56962,95772.0,95762.0,0.067]
[1739376219619,0.56962,95772.0,95763.0,0.2088381]
[1739376219814,0.56962,95772.0,95762.0,0.067]
[1739376220319,0.3608,95764.0,95754.0,0.0706]
[1739376220528,0.3608,95764.0,95759.0,0.2088466]
[1739376220529,0.07916,95763.0,95759.0,0.2088466]
[1739376220723,0.6118448,95764.0,95754.0,0.0706]
[1739376220724,0.61240481,95764.0,95754.0,0.0706]
[1739376221023,0.6118448,95764.0,95762.0,0.001]
[1739376221218,0.2088591,95754.0,95747.0,0.0736]
[1739376221414,0.3608,95749.0,95747.0,0.0736]
[1739376221629,0.07416,95748.0,95747.0,0.0736]
[1739376222722,0.07416,95748.0,95747.0,0.001]
[1739376222918,0.07416,95748.0,95727.0,0.0685]
[1739376223118,0.3608,95749.0,95729.0,0.208911]
[1739376223119,0.1255224,95737.0,95729.0,0.208911]
[1739376223427,0.1255224,95737.0,95732.0,0.2089059]
[1739376223720,0.1245224,95737.0,95732.0,0.2089059]
[1739376223927,0.1245224,95737.0,95726.0,0.2089184]
[1739376224626,0.77208,95736.0,95726.0,0.2089184]
[1739376224820,0.8976024,95736.0,95726.0,0.2089184]
[1739376225019,0.8976024,95736.0,95720.0,0.3608]
[1739376225220,0.2510448,95730.0,95729.0,0.001]
[1739376225420,0.3608,95730.0,95713.0,0.2089462]
[1739376225624,0.3608,95717.0,95713.0,0.2089462]
[1739376225933,0.3598,95717.0,95713.0,0.2089462]
[1739376226826,0.008,95717.0,95713.0,0.2099462]
[1739376227224,0.02137242,95717.0,95716.0,0.2089415]
[1739376227424,0.02137242,95717.0,95716.0,0.5697415]
[1739376227624,0.4863224,95730.0,95716.0,0.3608]
[1739376227833,0.4863224,95730.0,95728.0,0.2089149]
[1739376228019,0.3608,95730.0,95729.0,0.1364]
[1739376228223,0.44,95730.0,95729.0,0.1364]
[1739376228425,0.0792,95730.0,95729.0,0.1364]
[1739376229024,0.09272127,95730.0,95729.0,0.1364]
[1739376229226,0.01352127,95730.0,95729.0,0.1364]
[1739376229423,0.00156763,95737.0,95730.0,0.208911]
[1739376229632,0.00156763,95737.0,95729.0,0.1364]
[1739376229833,0.48688241,95738.0,95729.0,0.1364]
[1739376230021,0.48688241,95738.0,95729.0,0.1374]
[1739376230022,0.015,95730.0,95729.0,0.1374]
[1739376230327,0.1012,95730.0,95729.0,0.1374]
[1739376230833,0.0942,95730.0,95729.0,0.1374]
[1739376231234,0.584711,95730.0,95729.0,0.001]
[1739376231531,0.591711,95730.0,95729.0,0.001]
[1739376232534,0.2079163,95728.0,95719.0,0.2089331]
[1739376232820,0.3678,95730.0,95719.0,0.2089331]
[1739376232821,0.1255224,95729.0,95719.0,0.2089331]
[1739376233131,0.2089181,95727.0,95719.0,0.2089331]
[1739376233528,0.2079181,95727.0,95719.0,0.2089331]
[1739376233720,0.007,95728.0,95717.0,0.1436]
[1739376233925,0.3608,95722.0,95717.0,0.14319807]
[1739376234126,0.2089311,95721.0,95717.0,0.14319807]
[1739376234424,0.2089311,95721.0,95719.0,0.001]
[1739376235027,0.021,95727.0,95707.0,0.35984531]
[1739376235028,0.3608,95720.0,95707.0,0.35984531]
[1739376235226,0.1255224,95717.0,95708.0,0.0689]
[1739376235438,0.1255224,95717.0,95714.0,0.2089454]
[1739376235632,0.3608,95720.0,95716.0,0.2089415]
[1739376236028,0.89856241,95724.0,95707.0,0.35984531]
[1739376236339,0.1255224,95717.0,95716.0,0.2089415]
[1739376236527,0.77312,95724.0,95720.0,0.2089325]
[1739376236728,0.77248,95724.0,95717.0,0.001]
[1739376236929,0.07916,95723.0,95717.0,0.209939]
[1739376237135,0.007,95721.0,95708.0,0.0722]
[1739376237431,0.07916,95720.0,95715.0,0.3608]
[1739376237630,0.07916,95719.0,95716.0,0.3684]
[1739376237933,0.07916,95718.0,95717.0,0.2089393]
[1739376238132,0.007,95724.0,95723.0,0.2089262]
[1739376238335,0.007,95724.0,95723.0,0.5697262]
[1739376238940,0.01322985,95728.0,95723.0,0.3608]
[1739376239138,0.1255224,95733.0,95731.0,0.2089088]
[1739376239341,0.1255224,95741.0,95731.0,0.2089088]
[1739376240138,0.3608,95742.0,95731.0,0.5697088]
[1739376240339,0.1255224,95741.0,95731.0,0.5697088]
[1739376240642,0.01515664,95732.0,95731.0,0.5707088]
[1739376241425,0.0287405,95732.0,95731.0,0.5707088]
[1739376241825,0.0357405,95732.0,95731.0,0.5707088]
[1739376242026,0.02215664,95732.0,95731.0,0.5707088]
[1739376242342,0.77248,95742.0,95731.0,1.0302]
[1739376242640,0.78633324,95742.0,95741.0,0.569687]
[1739376242836,0.01385324,95742.0,95741.0,0.569687]
[1739376243041,0.00156761,95747.0,95746.0,0.208876]
[1739376243736,0.00015664,95756.0,95755.0,0.2088564]
[1739376243934,0.00015664,95756.0,95755.0,0.5696564]
[1739376245244,0.00715664,95756.0,95755.0,0.5696564]
[1739376245943,0.00715664,95756.0,95755.0,0.2088564]
[1739376246145,0.00715664,95756.0,95755.0,0.5696564]
[1739376246637,0.01815664,95756.0,95755.0,0.5706564]
[1739376249143,0.03200589,95756.0,95755.0,0.5706564]
[1739376252035,0.01815664,95756.0,95755.0,0.5706564]
[1739376252440,0.01489532,95764.0,95763.0,0.208839]
[1739376252651,0.00148437,95764.0,95763.0,0.569639]
[1739376252842,0.18645004,95778.0,95777.0,0.2088084]
[1739376254048,0.00015664,95787.0,95786.0,0.2087888]
[1739376254250,1e-08,95787.0,95786.0,0.5695888]
[1739376254547,1e-08,95787.0,95786.0,0.9379888]
[1739376255841,1e-08,95787.0,95786.0,0.9389888]
[1739376257054,0.00500001,95787.0,95786.0,0.9399888]
[1739376258556,0.14274593,95810.0,95809.0,0.2087387]
[1739376258753,0.01722353,95810.0,95809.0,0.2087387]
[1739376258956,0.77292,95811.0,95809.0,0.2087387]
[1739376259162,0.77228,95811.0,95809.0,0.2087387]
[1739376260255,0.77228,95811.0,95810.0,0.2087365]
[1739376260451,0.79237504,95811.0,95810.0,0.2087365]
[1739376262058,0.79337504,95811.0,95810.0,0.2097365]
[1739376262251,0.77628,95811.0,95810.0,0.2097365]
[1739376262448,0.004,95811.0,95810.0,0.2097365]
[1739376263362,0.02418694,95820.0,95819.0,0.2087169]
[1739376263559,0.1255224,95829.0,95828.0,0.2086972]
[1739376263756,0.22594676,95831.0,95828.0,0.2086972]
[1739376263960,0.01725566,95831.0,95828.0,0.2086972]
[1739376264156,0.2086786,95837.0,95828.0,0.2086972]
[1739376264360,0.3608,95837.0,95828.0,0.2086972]
[1739376264565,0.20868,95836.0,95828.0,0.2086972]
[1739376265060,0.3608,95837.0,95821.0,0.00015656]
[1739376265061,0.37736415,95834.0,95821.0,0.00015656]
[1739376265265,0.3608,95826.0,95823.0,0.2087074]
[1739376266067,0.1255224,95831.0,95828.0,0.001]
[1739376266366,0.37896416,95834.0,95828.0,0.209697]
[1739376266554,0.0721,95833.0,95828.0,0.001]
[1739376266752,0.0721,95833.0,95821.0,0.00015656]
[1739376266753,0.0721,95833.0,95832.0,0.2086886]
[1739376267868,0.01656415,95834.0,95833.0,0.2086864]
[1739376268055,0.1255224,95838.0,95830.0,0.3608]
[1739376268262,0.1255224,95838.0,95837.0,0.2086777]
[1739376268456,0.14225656,95841.0,95837.0,0.2086777]
[1739376269163,0.14225656,95841.0,95832.0,0.001]
[1739376269164,0.14225656,95841.0,95833.0,0.001]
[1739376269754,0.16043352,95841.0,95837.0,0.001]
[1739376270156,0.36910292,95841.0,95837.0,0.001]
[1739376270758,0.16043352,95841.0,95840.0,0.2086712]
[1739376270969,0.16043352,95841.0,95837.0,0.002]
[1739376271554,0.16043352,95841.0,95837.0,0.001]
[1739376271955,0.36910252,95841.0,95840.0,0.001]
[1739376272663,0.16043352,95841.0,95840.0,0.001]
[1739376272865,0.16043352,95841.0,95840.0,0.2096712]
[1739376274372,0.16043352,95841.0,95840.0,0.2106712]
[1739376275475,0.08993352,95841.0,95840.0,0.2106712]
[1739376277072,0.08993352,95841.0,95834.0,0.2191]
[1739376277371,0.208678,95837.0,95834.0,0.1949753]
[1739376278176,0.2086804,95836.0,95834.0,0.1949753]
[1739376278565,0.2086804,95836.0,95834.0,0.1959753]
[1739376278966,0.2086804,95836.0,95834.0,0.001]
[1739376279267,0.07896,95835.0,95834.0,0.001]
[1739376279870,0.07896,95835.0,95834.0,0.002]
[1739376281673,0.08096,95835.0,95834.0,0.002]
[1739376283267,0.2896421,95835.0,95834.0,0.002]
[1739376283467,0.2106821,95835.0,95834.0,0.002]
[1739376284073,0.002,95835.0,95822.0,0.1949753]
[1739376284270,0.071,95834.0,95822.0,0.4036846]
[1739376284570,0.3608,95826.0,95822.0,0.4036846]
[1739376285075,0.3608,95826.0,95822.0,0.1949753]
[1739376285269,0.3608,95826.0,95822.0,0.1959753]
[1739376285574,0.2087082,95823.0,95822.0,0.1959753]
[1739376286171,0.2087082,95823.0,95822.0,0.1949753]
[1739376286476,0.2087082,95823.0,95822.0,0.17326037]
[1739376286671,0.2087082,95823.0,95822.0,0.17426037]
[1739376287176,0.37958284,95826.0,95822.0,0.17426037]
[1739376287177,0.15481182,95825.0,95822.0,0.17426037]
[1739376287877,0.15481182,95825.0,95822.0,0.38296927]
[1739376288076,0.15481182,95825.0,95824.0,0.208706]
[1739376288483,0.77236,95838.0,95837.0,0.2086777]
[1739376288679,0.77172,95838.0,95837.0,0.5694777]
[1739376288980,0.77172,95838.0,95837.0,0.2086777]
[1739376289582,0.78820161,95838.0,95837.0,0.2086777]
[1739376289775,0.79120161,95838.0,95837.0,0.2096777]
[1739376289975,0.79098893,95838.0,95837.0,0.2096777]
[1739376290981,0.79098893,95838.0,95837.0,0.38193807]
[1739376291184,0.01948161,95838.0,95837.0,0.38293807]
[1739376291776,0.01648161,95838.0,95837.0,0.38193807]
[1739376291972,0.001,95838.0,95837.0,0.38293807]
[1739376292675,0.2086723,95840.0,95837.0,0.02763131]
[1739376292985,0.2086976,95828.0,95815.0,0.2087235]
[1739376293187,0.1255224,95820.0,95815.0,0.2087235]
[1739376293386,0.4863224,95820.0,95811.0,0.0719]
[1739376293579,0.4863224,95820.0,95808.0,0.2087407]
[1739376293779,0.4863224,95820.0,95804.0,0.3608]
[1739376293979,0.1255224,95814.0,95810.0,0.2087357]
[1739376294182,0.1255224,95820.0,95810.0,0.2087357]
[1739376294384,0.3608,95813.0,95802.0,0.00015656]
[1739376294581,0.3608,95813.0,95800.0,0.00156574]
[1739376294582,0.2087406,95809.0,95800.0,0.00156574]
[1739376294775,0.3598,95813.0,95800.0,0.00156574]
[1739376294980,0.2087541,95802.0,95800.0,0.00156574]
[1739376295777,0.2087541,95802.0,95798.0,0.24805818]
[1739376295983,0.1433,95804.0,95798.0,0.22234616]
[1739376296180,0.2087787,95791.0,95789.0,0.28434235]
[1739376296380,0.3598,95790.0,95789.0,0.04652456]
[1739376296586,0.3598,95790.0,95780.0,0.36876117]
[1739376296587,0.2087953,95784.0,95780.0,0.33046175]
[1739376296787,0.3608,95781.0,95780.0,0.33046175]
[1739376297387,0.3598,95781.0,95780.0,0.32050175]
[1739376298079,0.3638,95781.0,95780.0,0.32050175]
[1739376298287,0.3638,95781.0,95771.0,0.02578787]
[1739376298487,0.1396,95780.0,95771.0,0.01203487]
[1739376299192,0.1386,95780.0,95771.0,0.01203487]
[1739376299687,0.55888533,95781.0,95771.0,0.01203487]
[1739376299889,0.55432532,95781.0,95771.0,0.01603487]
[1739376300282,0.003,95780.0,95771.0,0.01603487]
[1739376300887,0.003,95780.0,95771.0,0.00415656]
[1739376300888,0.3608,95772.0,95771.0,0.00415656]
[1739376301591,0.3608,95772.0,95762.0,0.3608]
[1739376301793,0.3608,95764.0,95752.0,0.00164831]
[1739376302102,0.3608,95756.0,95743.0,0.2088804]
[1739376302395,0.18852532,95760.0,95738.0,0.3608]
[1739376302694,0.18852532,95760.0,95750.0,0.5696654]
[1739376302893,0.3608,95757.0,95750.0,0.3608]
[1739376303192,0.2088655,95751.0,95739.0,0.21925666]
[1739376303383,0.18852532,95749.0,95739.0,0.21925666]
[1739376303696,0.18452532,95749.0,95739.0,0.21925666]
[1739376304391,0.54532532,95749.0,95739.0,0.21925666]
[1739376304593,0.75419542,95749.0,95739.0,0.21925666]
[1739376304793,0.54532532,95749.0,95739.0,0.21925666]
[1739376304993,0.18452532,95749.0,95739.0,0.21925666]
[1739376305890,0.2088722,95748.0,95739.0,0.21925666]
[1739376306095,0.2088722,95748.0,95739.0,0.22625666]
[1739376306903,0.2088722,95748.0,95739.0,0.21925666]
[1739376307094,0.2088722,95748.0,95739.0,0.22025666]
[1739376307695,0.2088722,95748.0,95739.0,0.21925666]
[1739376307896,0.2088722,95748.0,95739.0,0.22025666]
[1739376308195,0.011,95748.0,95739.0,0.00115666]
[1739376308409,0.011,95748.0,95729.0,0.2191]